fUSD/lending_fUSD_20240227
["ID","MTS","AMOUNT","RATE_DAILY","PERIOD"]
[315369557,1708992549110,-155.0,0.00019364,2]
[315369558,1708992549130,-2156.86206628,0.00019365,2]
[315369559,1708992549157,-554.44,0.00019366,2]
[315369560,1708992549182,-152.10511285,0.00020106,2]
[315369561,1708992549202,-482.86282087,0.00020206,2]
[315369569,1708992631545,-241.135,0.00019576,2]
[315369570,1708992631554,-208.57985765,0.00020206,2]
[315369571,1708992631563,-90.29172425,0.00020805,2]
[315369572,1708992631928,-61.81338859,0.00020805,2]
[315369573,1708992631937,-2785.16163178,0.00021,2]
[315369574,1708992631986,-1720.06836822,0.00021,2]
[315369575,1708992631995,-173.01,0.00021274,2]
[315369576,1708992632005,-613.19,0.00021352,2]
[315369577,1708992632015,-521.76,0.00021376,2]
[315369578,1708992632026,-642.42116597,0.00021422,2]
[315369579,1708992632040,-468.15,0.00021422,2]
[315369580,1708992632052,-459.75323735,0.00021422,2]
[315369581,1708992632080,-586.53766296,0.00021422,2]
[315369582,1708992632089,-419.32,0.00021423,2]
[315369583,1708992632099,-599.04,0.00021432,2]
[315369584,1708992632108,-792.1,0.00021464,2]
[315369585,1708992632117,-152.10511284,0.00021503,2]
[315369586,1708992632127,-200.0,0.00021574,2]
[315369587,1708992632136,-554.44,0.0002163,2]
[315369588,1708992632145,-232.60810169,0.00021658,2]
[315369589,1708992632155,-400.96,0.00021776,2]
[315369590,1708992632163,-6789.94457458,0.000218,2]
[315369591,1708992632183,-1080.41077486,0.000218,2]
[315369592,1708992632194,-1618.0389302,0.000218,2]
[315369593,1708992632206,-511.60572036,0.000218,2]
[315369594,1708992632215,-1127.81732276,0.00021861,2]
[315369604,1708992637384,-201.77645989,0.00021861,2]
[315369605,1708992637393,-848.06300172,0.000219,2]
[315369606,1708992637403,-155.43,0.00021918,2]
[315369607,1708992637412,-160.05,0.00021918,2]
[315369608,1708992637421,-225.81455999,0.00021979,2]
[315369609,1708992637433,-69.08790934,0.00021979,2]
[315369610,1708992637442,-161.76714987,0.00021979,2]
[315369611,1708992637450,-374.40574079,0.00021979,2]
[315369612,1708992637469,-1556.35788689,0.00021979,2]
[315369613,1708992637478,-223.41796939,0.0002198,2]
[315369614,1708992637487,-3946.81914372,0.0002198,2]
[315369615,1708992637621,-845.02,0.0002198,2]
[315369616,1708992637680,-23769.75298102,0.0002198,2]
[315369617,1708992637690,-24010.8833545,0.0002198,2]
[315369618,1708992637701,-24879.64248026,0.0002198,2]
[315369619,1708992637711,-3304.99954647,0.00021981,2]
[315369620,1708992637720,-1134.2402665,0.00021981,2]
[315369621,1708992637730,-153.34928405,0.00021982,2]
[315369622,1708992637739,-1930.76362768,0.00021982,2]
[315369625,1708992637749,-3304.99954647,0.00021982,2]
[315369627,1708992637771,-294.90246933,0.00021983,2]
[315369630,1708992637781,-1134.2402665,0.00021983,2]
[315369632,1708992637790,-48890.52583476,0.00021983,2]
[315369634,1708992637799,-12711.53671707,0.00021983,2]
[315369636,1708992637808,-161.76714987,0.00021984,2]
[315369638,1708992637817,-311.09067283,0.00021984,2]
[315369640,1708992637826,-7426.01395247,0.00021985,2]
[315369642,1708992637836,-223.41796939,0.00021985,2]
[315369644,1708992637845,-28561.59212474,0.00021985,2]
[315369646,1708992637854,-501.99854323,0.00021985,2]
[315369648,1708992637863,-223.41796939,0.00021986,2]
[315369650,1708992637874,-28561.59212474,0.00021986,2]
[315369652,1708992637883,-28561.59212474,0.00021986,2]
[315369654,1708992637892,-48890.52583476,0.00021986,2]
[315369656,1708992637902,-859.29988212,0.00021987,2]
[315369658,1708992637911,-153.34928405,0.00021987,2]
[315369660,1708992637921,-7426.01395247,0.00021987,2]
[315369662,1708992637930,-294.90246933,0.00021989,2]
[315369664,1708992637942,-3304.99954647,0.0002199,2]
[315369666,1708992637952,-1930.76362768,0.0002199,2]
[315369668,1708992637961,-859.29988212,0.0002199,2]
[315369670,1708992637971,-161.76714987,0.00021991,2]
[315369672,1708992637980,-7426.01395247,0.00021993,2]
[315369674,1708992637990,-3304.99954647,0.00021993,2]
[315369676,1708992638000,-501.99854323,0.00021993,2]
[315369678,1708992638011,-294.90246933,0.00021994,2]
[315369680,1708992638023,-223.41796939,0.00021994,2]
[315369682,1708992638033,-1134.2402665,0.00021994,2]
[315369684,1708992638042,-153.34928405,0.00021995,2]
[315369686,1708992638052,-311.09067283,0.00021995,2]
[315369688,1708992638062,-12711.53671707,0.00021995,2]
[315369690,1708992638072,-48890.52583476,0.00021995,2]
[315369692,1708992638083,-7426.01395247,0.00021996,2]
[315369694,1708992638094,-501.99854323,0.00021996,2]
[315369696,1708992638105,-161.76714987,0.00021996,2]
[315369698,1708992638115,-12711.53671707,0.00021996,2]
[315369700,1708992638125,-859.29988212,0.00021996,2]
[315369702,1708992638135,-311.09067283,0.00021997,2]
[315369704,1708992638145,-12711.53671707,0.00021997,2]
[315369706,1708992638155,-311.09067283,0.00021997,2]
[315369738,1708992638439,-859.29988212,0.00021997,2]
[315369740,1708992638448,-153.34928405,0.00021998,2]
[315369742,1708992638457,-1134.2402665,0.00021998,2]
[315369744,1708992638467,-501.99854323,0.00021999,2]
[315369746,1708992638476,-1930.76362768,0.00022,2]
[315369748,1708992638485,-152.10511284,0.00022202,2]
[315369750,1708992638494,-150.0,0.0002227,2]
[315369752,1708992638503,-152.68,0.00022326,2]
[315369754,1708992638512,-344.82,0.00022336,2]
[315369756,1708992638523,-150.0,0.00022526,2]
[315369758,1708992638532,-2000.0,0.000226,2]
[315369760,1708992638542,-344.82,0.00022629,2]
[315369762,1708992638551,-344.82,0.00022629,2]
[315369764,1708992638560,-721.95,0.00022629,2]
[315369766,1708992638569,-175.26675725,0.00022736,2]
[315369768,1708992638578,-177.75227734,0.00022798,2]
[315369770,1708992638587,-249.54806281,0.00022798,2]
[315369772,1708992638596,-1205.96995304,0.00022798,2]
[315369774,1708992638605,-1000.0,0.00022799,2]
[315369776,1708992638614,-265.76484355,0.00022799,2]
[315369778,1708992638624,-500.0,0.00022799,2]
[315369780,1708992638632,-500.0,0.00022799,2]
[315369782,1708992638642,-500.0,0.00022799,2]
[315369784,1708992638654,-500.0,0.00022799,2]
[315369786,1708992638664,-500.0,0.00022799,2]
[315369788,1708992638673,-500.0,0.00022799,2]
[315369790,1708992638683,-609.48,0.00022799,2]
[315369792,1708992638692,-500.0,0.00022799,2]
[315369794,1708992638701,-500.0,0.00022799,2]
[315369796,1708992638711,-500.0,0.00022799,2]
[315369798,1708992638721,-500.0,0.00022799,2]
[315369800,1708992638730,-2106.46,0.00022799,2]
[315369802,1708992638739,-502.93,0.00022799,2]
[315369804,1708992638748,-2737.48,0.00022799,2]
[315369806,1708992638758,-500.0,0.00022799,2]
[315369808,1708992638768,-500.0,0.00022799,2]
[315369810,1708992638777,-500.0,0.00022799,2]
[315369811,1708992638786,-500.0,0.00022799,2]
[315369812,1708992638795,-500.0,0.00022799,2]
[315369813,1708992638804,-500.0,0.00022799,2]
[315369814,1708992638813,-500.0,0.00022799,2]
[315369815,1708992638823,-500.0,0.00022799,2]
[315369816,1708992638832,-500.0,0.00022799,2]
[315369817,1708992638841,-500.0,0.00022799,2]
[315369818,1708992638850,-1464.7,0.00022799,2]
[315369819,1708992638859,-500.0,0.00022799,2]
[315369820,1708992638868,-500.0,0.00022799,2]
[315369822,1708992638878,-500.0,0.00022799,2]
[315369824,1708992638887,-500.0,0.00022799,2]
[315369826,1708992638896,-500.0,0.00022799,2]
[315369828,1708992638905,-500.0,0.00022799,2]
[315369830,1708992638914,-500.0,0.00022799,2]
[315369832,1708992638923,-704.33657762,0.00022799,2]
[315369834,1708992638932,-438.844,0.000228,2]
[315369836,1708992638941,-176304.77852459,0.000228,2]
[315370037,1708992640769,-19586.60263915,0.000228,2]
[315370039,1708992640781,-32566.27368448,0.000228,2]
[315370042,1708992640793,-410.40491062,0.000228,2]
[315370044,1708992640804,-779.65,0.000228,2]
[315370049,1708992640844,-5868.85568434,0.000228,2]
[315370052,1708992640858,-9483.43455682,0.000228,2]
[315370054,1708992640868,-10000.0,0.000228,2]
[315370056,1708992640877,-536.77971627,0.000228,2]
[315370058,1708992640886,-518.57,0.00022899,2]
[315370060,1708992640895,-500.0,0.00022899,2]
[315370062,1708992640904,-208.86,0.00022899,2]
[315370063,1708992640913,-628.76953994,0.00022899,2]
[315370064,1708992640922,-500.0,0.00022899,2]
[315370065,1708992640932,-230.96,0.00022899,2]
[315370066,1708992640942,-500.0,0.00022899,2]
[315370067,1708992640952,-137.20684777,0.00022899,2]
[315370068,1708992640964,-362.79315223,0.00022899,2]
[315370069,1708992640974,-500.0,0.00022899,2]
[315370070,1708992640988,-500.0,0.00022899,2]
[315370072,1708992640997,-500.0,0.00022899,2]
[315370074,1708992641007,-369.31440927,0.00022899,2]
[315370076,1708992641020,-130.68559073,0.00022899,2]
[315370078,1708992641030,-500.0,0.00022899,2]
[315370080,1708992641039,-38.62346747,0.00022899,2]
[315370083,1708992641056,-346.49624361,0.00022899,2]
[315370086,1708992641068,-114.88028892,0.00022899,2]
[315370088,1708992641077,-215.69815987,0.00022899,2]
[315370453,1708992644803,-364.02184013,0.00022899,2]
[315370454,1708992644813,-500.0,0.00022899,2]
[315370456,1708992644823,-500.0,0.00022899,2]
[315370458,1708992644833,-500.0,0.00022899,2]
[315370460,1708992644843,-500.0,0.00022899,2]
[315370462,1708992644852,-356.17815987,0.00022899,2]
[315370464,1708992644864,-143.82184013,0.00022899,2]
[315370466,1708992644873,-368.42931236,0.00022899,2]
[315370468,1708992644883,-500.0,0.00022899,2]
[315370470,1708992644892,-595.56,0.00022899,2]
[315370471,1708992644902,-500.0,0.00022899,2]
[315370473,1708992644911,-463.71715002,0.00022899,2]
[315370475,1708992644920,-500.0,0.00022899,2]
[315370477,1708992644930,-227.64,0.00022899,2]
[315370479,1708992644939,-500.0,0.00022899,2]
[315370481,1708992644951,-500.0,0.00022899,2]
[315370482,1708992644961,-500.0,0.00022899,2]
[315370484,1708992644970,-500.0,0.00022899,2]
[315370486,1708992644981,-175.89390235,0.00022899,2]
[315370488,1708992644990,-500.0,0.00022899,2]
[315370490,1708992644999,-500.0,0.00022899,2]
[315370492,1708992645008,-338.83,0.00022899,2]
[315370494,1708992645019,-1181.92,0.00022899,2]
[315370495,1708992645028,-179.02384848,0.00022899,2]
[315370498,1708992645050,-2156.86206628,0.00022898,2]
[315370500,1708992645060,-1002.89615152,0.00022899,2]
[315370502,1708992645070,-1181.92,0.00022899,2]
[315370503,1708992645080,-500.0,0.00022899,2]
[315370504,1708992645090,-500.0,0.00022899,2]
[315370505,1708992645099,-289.81,0.00022899,2]
[315370506,1708992645109,-2084.73,0.00022899,2]
[315370507,1708992645120,-2084.73,0.00022899,2]
[315370508,1708992645130,-2084.73,0.00022899,2]
[315370509,1708992645139,-287.39,0.00022899,2]
[315370510,1708992645150,-500.0,0.00022899,2]
[315370511,1708992645159,-500.0,0.00022899,2]
[315370512,1708992645169,-487.44457267,0.00022899,2]
[315370513,1708992645179,-629.94,0.00022899,2]
[315370514,1708992645189,-440.20772266,0.00022899,2]
[315370516,1708992645199,-500.0,0.00022899,2]
[315370518,1708992645208,-500.0,0.00022899,2]
[315370520,1708992645218,-625.13,0.00022899,2]
[315370522,1708992645227,-500.0,0.00022899,2]
[315370524,1708992645237,-500.0,0.00022899,2]
[315370526,1708992645248,-500.0,0.00022899,2]
[315370528,1708992645257,-589.62,0.00022899,2]
[315370530,1708992645266,-500.0,0.00022899,2]
[315370533,1708992645276,-500.0,0.00022899,2]
[315370536,1708992645285,-500.0,0.00022899,2]
[315370539,1708992645294,-30.38477596,0.00022899,2]
[315370543,1708992645309,-469.61522404,0.00022899,2]
[315370545,1708992645319,-195.74277596,0.00022899,2]
[315370548,1708992645330,-304.25722404,0.00022899,2]
[315370553,1708992645343,-16.17936996,0.00022899,2]
[315370556,1708992645357,-483.82063004,0.00022899,2]
[315370559,1708992645367,-500.0,0.00022899,2]
[315370561,1708992645377,-500.0,0.00022899,2]
[315370563,1708992645386,-500.0,0.00022899,2]
[315370565,1708992645396,-500.0,0.00022899,2]
[315370567,1708992645405,-400.6629666,0.00022899,2]
[315370569,1708992645414,-609.48,0.00022899,2]
[315370571,1708992645423,-609.48,0.00022899,2]
[315370573,1708992645432,-415.07992547,0.00022899,2]
[315370577,1708992645462,-627.44,0.0002289,3]
[315370579,1708992645472,-194.40007453,0.00022899,2]
[315370581,1708992645482,-500.0,0.00022899,2]
[315370583,1708992645491,-65.64643476,0.00022899,2]
[315370586,1708992645507,-434.35356524,0.00022899,2]
[315370588,1708992645516,-500.0,0.00022899,2]
[315370590,1708992645525,-357.1,0.00022899,2]
[315370592,1708992645535,-500.0,0.00022899,2]
[315370594,1708992645544,-498.12231394,0.00022899,2]
[315370596,1708992645553,-2106.46,0.00022899,2]
[315370598,1708992645562,-2106.46,0.00022899,2]
[315370600,1708992645572,-2106.46,0.00022899,2]
[315370602,1708992645581,-258.99,0.00022899,2]
[315370604,1708992645591,-505.76,0.00022899,2]
[315370606,1708992645600,-500.0,0.00022899,2]
[315370608,1708992645610,-502.93,0.00022899,2]
[315370610,1708992645619,-500.0,0.00022899,2]
[315370612,1708992645628,-502.93,0.00022899,2]
[315370614,1708992645637,-502.93,0.00022899,2]
[315370616,1708992645646,-500.0,0.00022899,2]
[315370618,1708992645656,-2193.58824225,0.00022899,2]
[315370621,1708992645669,-343.65385883,0.00022899,2]
[315370623,1708992645681,-200.23789892,0.00022899,2]
[315370625,1708992645690,-2737.48,0.00022899,2]
[315370627,1708992645699,-2737.48,0.00022899,2]
[315370629,1708992645708,-243.41347181,0.00022899,2]
[315370630,1708992645717,-570.39,0.00022899,2]
[315370632,1708992645726,-240.95980954,0.00022899,2]
[315370633,1708992645735,-500.0,0.00022899,2]
[315370635,1708992645744,-187.12806683,0.00022899,2]
[315370637,1708992645754,-348.61040587,0.00022899,2]
[315370639,1708992645766,-151.38959413,0.00022899,2]
[315370641,1708992645775,-443.91,0.00022899,2]
[315370643,1708992645785,-586.00073105,0.00022899,2]
[315370645,1708992645795,-500.0,0.00022899,2]
[315370647,1708992645805,-500.0,0.00022899,2]
[315370649,1708992645815,-500.0,0.00022899,2]
[315370651,1708992645826,-500.0,0.00022899,2]
[315370653,1708992645835,-498.18,0.00022899,2]
[315370655,1708992645845,-500.0,0.00022899,2]
[315370657,1708992645855,-500.0,0.00022899,2]
[315370659,1708992645864,-500.0,0.00022899,2]
[315370661,1708992645874,-500.0,0.00022899,2]
[315370663,1708992645883,-500.0,0.00022899,2]
[315370665,1708992645892,-500.0,0.00022899,2]
[315370667,1708992645902,-500.0,0.00022899,2]
[315370669,1708992645911,-1464.7,0.00022899,2]
[315370671,1708992645920,-1464.7,0.00022899,2]
[315370673,1708992645930,-1464.7,0.00022899,2]
[315370675,1708992645939,-500.0,0.00022899,2]
[315370677,1708992645952,-500.0,0.00022899,2]
[315370680,1708992645962,-500.0,0.00022899,2]
[315370682,1708992645971,-500.0,0.00022899,2]
[315370684,1708992645980,-500.0,0.00022899,2]
[315370686,1708992645990,-500.0,0.00022899,2]
[315370688,1708992645999,-500.0,0.00022899,2]
[315370690,1708992646008,-500.0,0.00022899,2]
[315370692,1708992646018,-500.0,0.00022899,2]
[315370694,1708992646028,-500.0,0.00022899,2]
[315370696,1708992646037,-500.0,0.00022899,2]
[315370698,1708992646046,-500.0,0.00022899,2]
[315370700,1708992646055,-731.24,0.00022899,2]
[315370702,1708992646065,-731.24,0.00022899,2]
[315370704,1708992646074,-126.16935981,0.00022899,2]
[315370706,1708992646087,-605.07064019,0.00022899,2]
[315370708,1708992646096,-500.0,0.00022899,2]
[315370710,1708992646106,-500.0,0.00022899,2]
[315370712,1708992646115,-345.64836641,0.00022899,2]
[315370714,1708992646128,-154.35163359,0.00022899,2]
[315370716,1708992646138,-500.0,0.00022899,2]
[315370718,1708992646147,-500.0,0.00022899,2]
[315370720,1708992646156,-399.62245241,0.00022899,2]
[315370722,1708992646165,-1208.02399862,0.000229,4]
[315370724,1708992646178,-41927.43937175,0.000229,4]
[315370726,1708992646190,-665.46962851,0.000229,4]
[315370729,1708992646202,-841.16592613,0.000229,4]
[315370731,1708992646213,-530.64723781,0.000229,4]
[315370733,1708992646225,-534.70969836,0.000229,4]
[315370736,1708992646241,-3980.18448593,0.000229,4]
[315370738,1708992646253,-508.72749495,0.000229,4]
[315370740,1708992646264,-2880.11603422,0.000229,4]
[315370742,1708992646276,-5720.9252866,0.000229,4]
[315370744,1708992646288,-8166.85435804,0.000229,4]
[315370746,1708992646300,-3179.68,0.000229,4]
[315370749,1708992646312,-870.2257524,0.000229,4]
[315370751,1708992646324,-5450.0000015,0.000229,4]
[315370753,1708992646335,-9649.9999925,0.000229,4]
[315370756,1708992646358,-0.00630758,0.000229,4]
[315371142,1708992838292,66373.0,0.0002686,120]
[315371143,1708992857983,200000.0,0.00026855,120]
[315371146,1708992924990,460807.96,0.00026855,120]
[315371147,1708993331490,10000.0,0.00026855,120]
[315371148,1708993671639,200.0,0.00026,120]
[315371149,1708993695268,2824.366,0.00021864,90]
[315371150,1708993756100,-322.66125442,0.00019258,2]
[315371151,1708993756124,-628.31034553,0.00019258,2]
[315371152,1708993756144,-544.63,0.00019259,2]
[315371153,1708993756167,-154.22692319,0.00019541,2]
[315371154,1708993756189,-2156.86206628,0.00019632,2]
[315371155,1708993756211,-4481.99748922,0.00020106,2]
[315371156,1708993827309,6236.5259,0.00021871,90]
[315371167,1708993831686,-64.06341078,0.00020106,2]
[315371168,1708993831695,-512.29454933,0.00021,2]
[315371169,1708993831744,-909.07266442,0.00021,2]
[315371170,1708993831756,-658.82493866,0.00021,2]
[315371171,1708993831767,-561.51132701,0.00021,2]
[315371172,1708993831809,-833.36001832,0.00021,2]
[315371173,1708993831821,-467.8057218,0.00021,2]
[315371174,1708993831993,-2667.73037155,0.00021,2]
[315371180,1708993840230,-38210.14387271,0.00021,2]
[315371181,1708993840239,-178.95,0.0002102,2]
[315371182,1708993840249,-9634.4,0.0002102,2]
[315371183,1708993840260,-628.31034553,0.00021125,2]
[315371184,1708993840269,-588.51,0.00021126,2]
[315371185,1708993840279,-173.01,0.00021132,2]
[315371187,1708993840292,-520.76,0.00021134,2]
[315371189,1708993840302,-2000.0,0.00021166,2]
[315371190,1708993840311,-289.95,0.0002124,2]
[315371191,1708993840321,-250.0,0.00021432,2]
[315371192,1708993840331,-479.24,0.00021468,2]
[315371193,1708993840340,-499.99,0.00021468,2]
[315371194,1708993840350,-1417.24768981,0.00021499,2]
[315371196,1708993840360,-2500.0,0.000215,2]
[315371197,1708993840370,-544.63,0.00021523,2]
[315371198,1708993840379,-181.99,0.00021559,2]
[315371199,1708993840389,-175.44,0.00021694,2]
[315371200,1708993840398,-224.99,0.00021694,3]
[315371201,1708993840407,-166.24,0.00021918,2]
[315371202,1708993840416,-412.13432437,0.0002196,3]
[315371203,1708993840426,-999.99,0.00021964,2]
[315371204,1708993840435,-1000.0,0.00021971,3]
[315371205,1708993840444,-1000.0,0.00021971,3]
[315371206,1708993840454,-150.83618679,0.00021971,3]
[315371207,1708993840463,-2250.0,0.00022,3]
[315371208,1708993840497,-1500.0,0.00022,2]
[315371209,1708993840507,-919.07,0.00022219,2]
[315371210,1708993840516,-264.13,0.00022356,2]
[315371211,1708993840525,-424.18,0.00022356,2]
[315371212,1708993840534,-150.0,0.00022384,2]
[315371213,1708993840543,-1500.0,0.000225,2]
[315371214,1708993840552,-166.24,0.00022648,2]
[315371215,1708993840562,-2870.0,0.000227,2]
[315371216,1708993840571,-2000.0,0.000227,2]
[315371217,1708993840581,-4506.05830487,0.000227,2]
[315371218,1708993840590,-1736.9094,0.000227,2]
[315371219,1708993840599,-31270.9668,0.000227,2]
[315371220,1708993840610,-588.51,0.0002277,2]
[315371221,1708993840620,-411.30247238,0.00022798,2]
[315371222,1708993840630,-500.0,0.00022799,2]
[315371223,1708993840639,-232.54423815,0.00022799,2]
[315371224,1708993840648,-150.1,0.000228,2]
[315371225,1708993840658,-145269.5116,0.000228,2]
[315371226,1708993840668,-4502.42507077,0.00022869,2]
[315371227,1708993840710,-288.65288735,0.00022869,2]
[315371228,1708993840720,-159.74303658,0.0002287,2]
[315371229,1708993840730,-500.0,0.00022898,2]
[315371230,1708993840738,-500.0,0.00022898,2]
[315371231,1708993840748,-150.0,0.00022898,2]
[315371232,1708993840757,-1034.18,0.00022898,2]
[315371233,1708993840767,-1824.13,0.00022898,2]
[315371234,1708993840776,-500.0,0.00022898,2]
[315371235,1708993840785,-500.0,0.00022898,2]
[315371236,1708993840794,-500.0,0.00022898,2]
[315371237,1708993840803,-507.9,0.00022898,2]
[315371238,1708993840812,-1755.38,0.00022898,2]
[315371239,1708993840821,-500.0,0.00022898,2]
[315371240,1708993840831,-500.0,0.00022898,2]
[315371241,1708993840840,-500.0,0.00022898,2]
[315371243,1708993840849,-500.0,0.00022898,2]
[315371245,1708993840861,-500.48,0.00022898,2]
[315371247,1708993840870,-3048.24,0.00022898,2]
[315371249,1708993840879,-500.0,0.00022898,2]
[315371251,1708993840889,-1220.59,0.00022898,2]
[315371253,1708993840898,-500.0,0.00022898,2]
[315371255,1708993840907,-500.0,0.00022898,2]
[315371257,1708993840916,-500.0,0.00022898,2]
[315371259,1708993840925,-500.0,0.00022898,2]
[315371261,1708993840934,-213.50550415,0.00022898,2]
[315371263,1708993840942,-639.83,0.00022898,2]
[315371265,1708993840951,-500.16,0.00022898,2]
[315371267,1708993840961,-500.0,0.00022898,2]
[315371269,1708993840971,-500.0,0.00022898,2]
[315371271,1708993840980,-500.0,0.00022898,2]
[315371273,1708993840989,-500.0,0.00022898,2]
[315371275,1708993840998,-1708.97155022,0.00022898,2]
[315371277,1708993841007,-178.6370157,0.00022899,2]
[315371279,1708993841016,-500.0,0.00022899,2]
[315371281,1708993841025,-493.5057485,0.00022899,2]
[315371283,1708993841034,-617.41990522,0.00022899,2]
[315371285,1708993841043,-500.0,0.00022899,2]
[315371287,1708993841052,-315.228252,0.00022899,2]
[315371289,1708993841062,-500.0,0.00022899,2]
[315371291,1708993841071,-500.0,0.00022899,2]
[315371293,1708993841080,-500.0,0.00022899,2]
[315371295,1708993841090,-278.9,0.00022899,2]
[315371297,1708993841099,-150.0,0.00022899,2]
[315371299,1708993841109,-150.0,0.00022899,2]
[315371301,1708993841119,-1034.18,0.00022899,2]
[315371303,1708993841128,-1034.18,0.00022899,2]
[315371305,1708993841136,-968.62298268,0.00022899,2]
[315371328,1708993841363,-855.50701732,0.00022899,2]
[315371330,1708993841373,-1208.56798268,0.00022899,2]
[315371333,1708993841386,-588.72299268,0.00022899,2]
[315371343,1708993841472,-26.83902464,0.00022899,2]
[315371345,1708993841481,-500.0,0.00022899,2]
[315371346,1708993841491,-500.0,0.00022899,2]
[315371348,1708993841500,-341.5857512,0.00022899,2]
[315371351,1708993841509,-500.0,0.00022899,2]
[315371353,1708993841519,-500.0,0.00022899,2]
[315371355,1708993841529,-507.9,0.00022899,2]
[315371357,1708993841539,-507.9,0.00022899,2]
[315371359,1708993841548,-710.24613948,0.00022899,2]
[315371362,1708993841576,-500.0,0.00022898,2]
[315371364,1708993841587,-61.22252724,0.00022899,2]
[315371367,1708993841599,-278.20064693,0.00022899,2]
[315371369,1708993841613,-705.71068635,0.00022899,2]
[315371371,1708993841622,-188.73227279,0.00022899,2]
[315371373,1708993841634,-1566.64772721,0.00022899,2]
[315371375,1708993841643,-500.0,0.00022899,2]
[315371377,1708993841653,-500.0,0.00022899,2]
[315371379,1708993841662,-500.0,0.00022899,2]
[315371381,1708993841672,-500.0,0.00022899,2]
[315371383,1708993841681,-500.0,0.00022899,2]
[315371385,1708993841693,-500.0,0.00022899,2]
[315371387,1708993841702,-500.0,0.00022899,2]
[315371389,1708993841713,-3048.24,0.00022899,2]
[315371391,1708993841722,-3048.24,0.00022899,2]
[315371393,1708993841732,-500.0,0.00022899,2]
[315371395,1708993841743,-500.0,0.00022899,2]
[315371397,1708993841753,-1220.59,0.00022899,2]
[315371399,1708993841763,-1220.59,0.00022899,2]
[315371401,1708993841773,-500.0,0.00022899,2]
[315371403,1708993841784,-500.0,0.00022899,2]
[315371405,1708993841794,-349.47,0.00022899,2]
[315371407,1708993841805,-500.0,0.00022899,2]
[315371409,1708993841815,-500.0,0.00022899,2]
[315371411,1708993841824,-500.0,0.00022899,2]
[315371413,1708993841833,-434.77,0.00022899,2]
[315371415,1708993841842,-639.83,0.00022899,2]
[315371417,1708993841852,-500.16,0.00022899,2]
[315371419,1708993841863,-639.83,0.00022899,2]
[315371421,1708993841873,-500.16,0.00022899,2]
[315371423,1708993841883,-500.0,0.00022899,2]
[315371425,1708993841893,-500.0,0.00022899,2]
[315371427,1708993841903,-500.0,0.00022899,2]
[315371429,1708993841913,-222.75968382,0.00022899,2]
[315371433,1708993841941,-272.185,0.00022899,2]
[315371435,1708993841954,-5.05531618,0.00022899,2]
[315371437,1708993841964,-267.94614328,0.00022899,2]
[315371440,1708993841980,-232.05385672,0.00022899,2]
[315371442,1708993841990,-165.81193681,0.00022899,2]
[315371444,1708993842002,-334.18806319,0.00022899,2]
[315371446,1708993842012,-500.0,0.00022899,2]
[315371448,1708993842022,-500.0,0.00022899,2]
[315371450,1708993842032,-500.0,0.00022899,2]
[315371452,1708993842042,-599.65619442,0.00022899,2]
[315371454,1708993842052,-500.0,0.00022899,2]
[315371456,1708993842062,-500.0,0.00022899,2]
[315371458,1708993842072,-500.0,0.00022899,2]
[315371460,1708993842082,-499.84013601,0.00022899,2]
[315371462,1708993842093,-500.0,0.00022899,2]
[315371464,1708993842103,-500.0,0.00022899,2]
[315371466,1708993842115,-500.0,0.00022899,2]
[315371468,1708993842126,-500.0,0.00022899,2]